[Event "Late-Titled-Tuesday-Blitz-September-19-2023"]
[Site "Chess.com"]
[Date "2023.09.19"]
[Round "7"]
[White "Arimin1329"]
[Black "FrancescoSorcinelli"]
[Result "1-0"]
[WhiteElo "2264"]
[BlackElo "2092"]
[TimeControl "180+1"]
[EndTime "15:15:03 PDT"]
[Termination "Arimin1329 won by checkmate"]

1. d4 {[%clk 0:02:51.5]} 1... g6 {[%clk 0:02:59.9]} 2. Bf4 {[%clk 0:02:51.9]}
2... Bg7 {[%clk 0:03:00.3]} 3. e3 {[%clk 0:02:52.8]} 3... d6 {[%clk 0:03:00.4]}
4. Nf3 {[%clk 0:02:53.5]} 4... Nc6 {[%clk 0:03:00.6]} 5. Be2 {[%clk 0:02:54.4]}
5... Bg4 {[%clk 0:03:00.9]} 6. h3 {[%clk 0:02:54.2]} 6... Bxf3 {[%clk
0:03:00.6]} 7. Bxf3 {[%clk 0:02:55.1]} 7... e5 {[%clk 0:03:01.2]} 8. dxe5 {[%clk
0:02:46.2]} 8... dxe5 {[%clk 0:03:02.1]} 9. Qxd8+ {[%clk 0:02:40.3]} 9... Rxd8
{[%clk 0:03:03]} 10. Bg5 {[%clk 0:02:40.3]} 10... Nge7 {[%clk 0:02:53.5]} 11.
Nc3 {[%clk 0:02:33]} 11... h6 {[%clk 0:02:53.6]} 12. Bxe7 {[%clk 0:02:32.4]}
12... Nxe7 {[%clk 0:02:49.2]} 13. Be2 {[%clk 0:02:20.9]} 13... O-O {[%clk
0:02:46.6]} 14. Bc4 {[%clk 0:02:16.8]} 14... c6 {[%clk 0:02:42.5]} 15. Ke2
{[%clk 0:02:15.7]} 15... a5 {[%clk 0:02:42]} 16. a3 {[%clk 0:02:13.7]} 16... b5
{[%clk 0:02:40.6]} 17. Ba2 {[%clk 0:02:12]} 17... Kh7 {[%clk 0:02:23.5]} 18.
Rad1 {[%clk 0:02:11.6]} 18... f5 {[%clk 0:02:23.2]} 19. e4 {[%clk 0:02:08.8]}
19... b4 {[%clk 0:02:15.6]} 20. axb4 {[%clk 0:02:03.8]} 20... axb4 {[%clk
0:02:16.5]} 21. Na4 {[%clk 0:02:04.1]} 21... fxe4 {[%clk 0:02:14]} 22. Nc5
{[%clk 0:01:59.8]} 22... Rxd1 {[%clk 0:02:09.3]} 23. Rxd1 {[%clk 0:02:00.7]}
23... Nf5 {[%clk 0:01:50.5]} 24. c3 {[%clk 0:01:51.1]} 24... bxc3 {[%clk
0:01:47.3]} 25. bxc3 {[%clk 0:01:52]} 25... Ra8 {[%clk 0:01:45.7]} 26. Rd2
{[%clk 0:01:50.8]} 26... e3 {[%clk 0:01:41.2]} 27. fxe3 {[%clk 0:01:49.6]} 27...
Ra5 {[%clk 0:01:36.9]} 28. Ne4 {[%clk 0:01:45.7]} 28... Ra4 {[%clk 0:01:33.8]}
29. Nc5 {[%clk 0:01:35.6]} 29... Ra3 {[%clk 0:01:24.8]} 30. g4 {[%clk 0:01:32]}
30... Ng3+ {[%clk 0:00:53.7]} 31. Kf3 {[%clk 0:01:28]} 31... Nf1 {[%clk
0:00:53.5]} 32. Rc2 {[%clk 0:01:19.9]} 32... Bf8 {[%clk 0:00:39]} 33. Ne6 {[%clk
0:01:16.6]} 33... Be7 {[%clk 0:00:31.7]} 34. Bc4 {[%clk 0:01:16.8]} 34... Ra1
{[%clk 0:00:24]} 35. Rf2 {[%clk 0:01:16.1]} 35... Rc1 {[%clk 0:00:14.5]} 36.
Rxf1 {[%clk 0:01:04]} 36... Rxc3 {[%clk 0:00:14.7]} 37. Ke2 {[%clk 0:01:03.9]}
37... Bb4 {[%clk 0:00:09.7]} 38. Rf7+ {[%clk 0:00:50]} 38... Kh8 {[%clk
0:00:09.6]} 39. Ba6 {[%clk 0:00:45.3]} 39... e4 {[%clk 0:00:06.4]} 40. Nf4
{[%clk 0:00:40.1]} 40... Kg8 {[%clk 0:00:05.1]} 41. Rb7 {[%clk 0:00:38.4]} 41...
Rc2+ {[%clk 0:00:05]} 42. Kd1 {[%clk 0:00:36.5]} 42... Rd2+ {[%clk 0:00:04.8]}
43. Kc1 {[%clk 0:00:36.3]} 43... Ba5 {[%clk 0:00:05.2]} 44. Nxg6 {[%clk
0:00:33.5]} 44... Rh2 {[%clk 0:00:02.1]} 45. Bc4# {[%clk 0:00:33]} 1-0

[Event "Late-Titled-Tuesday-Blitz-September-19-2023"]
[Site "Chess.com"]
[Date "2023.09.19"]
[Round "7"]
[White "Hasangatin_Ramil"]
[Black "simplerXiao"]
[Result "0-1"]
[WhiteElo "2700"]
[BlackElo "2594"]
[TimeControl "180+1"]
[EndTime "15:15:05 PDT"]
[Termination "simplerXiao won on time"]

1. e4 {[%clk 0:03:00.9]} 1... c5 {[%clk 0:02:54]} 2. Nf3 {[%clk 0:03:00.7]} 2...
e6 {[%clk 0:02:53.7]} 3. g3 {[%clk 0:02:59.9]} 3... Nc6 {[%clk 0:02:53.3]} 4.
Bg2 {[%clk 0:03:00.3]} 4... d5 {[%clk 0:02:52.4]} 5. exd5 {[%clk 0:03:00.1]}
5... exd5 {[%clk 0:02:52.8]} 6. d4 {[%clk 0:02:59.8]} 6... Nf6 {[%clk 0:02:53]}
7. O-O {[%clk 0:02:59.9]} 7... Be7 {[%clk 0:02:53.3]} 8. dxc5 {[%clk 0:02:59.8]}
8... O-O {[%clk 0:02:53.1]} 9. Be3 {[%clk 0:02:56.6]} 9... d4 {[%clk 0:02:46.9]}
10. Nxd4 {[%clk 0:02:56]} 10... Ne5 {[%clk 0:02:44.2]} 11. Nb3 {[%clk
0:02:48.1]} 11... Nc4 {[%clk 0:02:43.3]} 12. Bd4 {[%clk 0:02:47.9]} 12... a5
{[%clk 0:02:41.9]} 13. a4 {[%clk 0:02:44.7]} 13... Ra6 {[%clk 0:02:40.7]} 14.
N1d2 {[%clk 0:02:43]} 14... Nxd2 {[%clk 0:02:33]} 15. Qxd2 {[%clk 0:02:42]}
15... Qc7 {[%clk 0:02:33.5]} 16. Rad1 {[%clk 0:02:36.9]} 16... Bg4 {[%clk
0:02:32.6]} 17. Rde1 {[%clk 0:02:34.2]} 17... Be6 {[%clk 0:02:31.6]} 18. Be5
{[%clk 0:02:27.2]} 18... Qc8 {[%clk 0:02:29.3]} 19. Bd6 {[%clk 0:02:25.7]} 19...
Rd8 {[%clk 0:02:28.2]} 20. Re3 {[%clk 0:02:05.1]} 20... Bxd6 {[%clk 0:02:27]}
21. cxd6 {[%clk 0:02:06]} 21... Raxd6 {[%clk 0:02:26.9]} 22. Qc3 {[%clk
0:02:01]} 22... b6 {[%clk 0:02:24.4]} 23. Rfe1 {[%clk 0:01:45.1]} 23... Nd5
{[%clk 0:02:21.9]} 24. Qxc8 {[%clk 0:01:41.6]} 24... Rxc8 {[%clk 0:02:21.5]} 25.
Bxd5 {[%clk 0:01:38.3]} 25... Rxd5 {[%clk 0:02:21.2]} 26. c3 {[%clk 0:01:37.4]}
26... Rc4 {[%clk 0:02:07.5]} 27. Nd4 {[%clk 0:01:35.7]} 27... Rxa4 {[%clk
0:02:00.9]} 28. Nxe6 {[%clk 0:01:35.3]} 28... fxe6 {[%clk 0:02:01.5]} 29. Rxe6
{[%clk 0:01:35.9]} 29... Rb5 {[%clk 0:02:02.2]} 30. Rd1 {[%clk 0:00:47.6]} 30...
Ra2 {[%clk 0:01:48.5]} 31. Rd7 {[%clk 0:00:42]} 31... h6 {[%clk 0:01:41.6]} 32.
Ree7 {[%clk 0:00:34.3]} 32... Rg5 {[%clk 0:01:40.9]} 33. b4 {[%clk 0:00:30]}
33... axb4 {[%clk 0:01:32.4]} 34. cxb4 {[%clk 0:00:29.9]} 34... Rb2 {[%clk
0:01:33.1]} 35. Rd4 {[%clk 0:00:24.9]} 35... Rf5 {[%clk 0:01:31]} 36. Rdd7
{[%clk 0:00:18.5]} 36... Rg5 {[%clk 0:01:19.5]} 37. h4 {[%clk 0:00:16.3]} 37...
Rg4 {[%clk 0:01:17.7]} 38. Kg2 {[%clk 0:00:15.7]} 38... Rbxb4 {[%clk 0:01:11.7]}
39. f3 {[%clk 0:00:16.1]} 39... Rg6 {[%clk 0:01:11.1]} 40. h5 {[%clk 0:00:15.5]}
40... Rg5 {[%clk 0:01:11.2]} 41. f4 {[%clk 0:00:15.4]} 41... Rxf4 {[%clk
0:01:10.6]} 42. Kh3 {[%clk 0:00:13.2]} 42... Rfg4 {[%clk 0:01:09.9]} 43. Re3
{[%clk 0:00:11.5]} 43... Rb4 {[%clk 0:01:06.6]} 44. Re8+ {[%clk 0:00:04.9]}
44... Kh7 {[%clk 0:01:06.2]} 45. Rdd8 {[%clk 0:00:05.4]} 45... Rxh5+ {[%clk
0:01:06.5]} 46. Kg2 {[%clk 0:00:06]} 46... Rg5 {[%clk 0:01:05.9]} 47. Rh8+
{[%clk 0:00:06.7]} 47... Kg6 {[%clk 0:01:06.2]} 48. Rd6+ {[%clk 0:00:07.3]}
48... Kh5 {[%clk 0:01:05.2]} 49. Re8 {[%clk 0:00:05.9]} 49... Rb2+ {[%clk
0:01:04.6]} 50. Kh3 {[%clk 0:00:05.7]} 50... Rb3 {[%clk 0:01:03.6]} 51. Kh2
{[%clk 0:00:05.5]} 51... Rbxg3 {[%clk 0:01:02.6]} 52. Re2 {[%clk 0:00:03.5]}
52... b5 {[%clk 0:01:02.5]} 53. Rd4 {[%clk 0:00:03.2]} 53... R3g4 {[%clk
0:01:00.7]} 54. Rd3 {[%clk 0:00:02.7]} 54... b4 {[%clk 0:01:00.5]} 55. Rh3+
{[%clk 0:00:02.9]} 55... Rh4 {[%clk 0:01:00.8]} 0-1

[Event "Late-Titled-Tuesday-Blitz-September-19-2023"]
[Site "Chess.com"]
[Date "2023.09.19"]
[Round "7"]
[White "SergioMoralesG"]
[Black "Alphafischer2019"]
[Result "0-1"]
[WhiteElo "2450"]
[BlackElo "2629"]
[TimeControl "180+1"]
[EndTime "15:15:11 PDT"]
[Termination "Alphafischer2019 won on time"]

1. d4 {[%clk 0:03:00.9]} 1... Nf6 {[%clk 0:02:58.8]} 2. c4 {[%clk 0:03:00.6]}
2... c5 {[%clk 0:02:57.7]} 3. d5 {[%clk 0:03:00.4]} 3... e5 {[%clk 0:02:58.3]}
4. Nc3 {[%clk 0:02:59.1]} 4... d6 {[%clk 0:02:58.2]} 5. e4 {[%clk 0:02:59.3]}
5... g6 {[%clk 0:02:59.1]} 6. g3 {[%clk 0:02:59.5]} 6... Bg7 {[%clk 0:02:59.4]}
7. Bg2 {[%clk 0:03:00.1]} 7... O-O {[%clk 0:03:00.1]} 8. Nge2 {[%clk 0:03:00.6]}
8... a6 {[%clk 0:03:00.8]} 9. a4 {[%clk 0:02:59.4]} 9... h6 {[%clk 0:02:59.9]}
10. O-O {[%clk 0:02:58.8]} 10... Nh5 {[%clk 0:02:56.8]} 11. h3 {[%clk
0:02:49.6]} 11... f5 {[%clk 0:02:52.8]} 12. exf5 {[%clk 0:02:47.1]} 12... gxf5
{[%clk 0:02:52.8]} 13. f4 {[%clk 0:02:41.7]} 13... e4 {[%clk 0:02:52.9]} 14. Be3
{[%clk 0:02:36.5]} 14... Nf6 {[%clk 0:02:50.8]} 15. Qd2 {[%clk 0:02:29.9]} 15...
Qe8 {[%clk 0:02:50.9]} 16. Nd1 {[%clk 0:02:24.1]} 16... Qg6 {[%clk 0:02:50.6]}
17. Bf2 {[%clk 0:02:23.2]} 17... Re8 {[%clk 0:02:47.3]} 18. Ne3 {[%clk
0:02:22.7]} 18... Nbd7 {[%clk 0:02:46.6]} 19. Kh2 {[%clk 0:02:21.3]} 19... Nf8
{[%clk 0:02:46.2]} 20. a5 {[%clk 0:02:19.7]} 20... Bd7 {[%clk 0:02:45.7]} 21.
Rg1 {[%clk 0:02:16.8]} 21... Rab8 {[%clk 0:02:39.8]} 22. Bh1 {[%clk 0:02:16]}
22... b6 {[%clk 0:02:36.1]} 23. axb6 {[%clk 0:01:57.4]} 23... Rxb6 {[%clk
0:02:37]} 24. Nc3 {[%clk 0:01:57.4]} 24... Reb8 {[%clk 0:02:23.3]} 25. Ra2
{[%clk 0:01:54.4]} 25... N8h7 {[%clk 0:02:14.7]} 26. Qe2 {[%clk 0:01:53.9]}
26... h5 {[%clk 0:02:10.9]} 27. Bg2 {[%clk 0:01:49.3]} 27... Kh8 {[%clk
0:02:02.7]} 28. Bf1 {[%clk 0:01:49.4]} 28... Bh6 {[%clk 0:02:01.2]} 29. Ncd1
{[%clk 0:01:37.8]} 29... Rg8 {[%clk 0:01:50]} 30. Ng2 {[%clk 0:01:36.6]} 30...
Qe8 {[%clk 0:01:39.8]} 31. Nde3 {[%clk 0:01:34.4]} 31... Nf8 {[%clk 0:01:28.8]}
32. Nh4 {[%clk 0:01:33.8]} 32... Qc8 {[%clk 0:01:28.7]} 33. Qd1 {[%clk
0:01:30.8]} 33... Ng6 {[%clk 0:01:24.5]} 34. Nxg6+ {[%clk 0:01:25]} 34... Rxg6
{[%clk 0:01:25.4]} 35. Be2 {[%clk 0:01:25.1]} 35... h4 {[%clk 0:01:26]} 36. Qd2
{[%clk 0:01:00.3]} 36... Qg8 {[%clk 0:01:24.8]} 37. Nf1 {[%clk 0:00:48.9]} 37...
e3 {[%clk 0:01:01.4]} 38. Qxe3 {[%clk 0:00:43.4]} 38... Ne4 {[%clk 0:01:01.9]}
39. gxh4 {[%clk 0:00:36.6]} 39... Nxf2 {[%clk 0:00:42.9]} 40. Rxg6 {[%clk
0:00:35.9]} 40... Qxg6 {[%clk 0:00:40.4]} 41. Qxf2 {[%clk 0:00:36.1]} 41... Qf6
{[%clk 0:00:33.6]} 42. Bd3 {[%clk 0:00:27.1]} 42... Rb3 {[%clk 0:00:29.4]} 0-1

[Event "Late-Titled-Tuesday-Blitz-September-19-2023"]
[Site "Chess.com"]
[Date "2023.09.19"]
[Round "7"]
[White "Bauman_Guy"]
[Black "WPWPWP-2015"]
[Result "1-0"]
[WhiteElo "2909"]
[BlackElo "2550"]
[TimeControl "180+1"]
[EndTime "15:15:13 PDT"]
[Termination "Bauman_Guy won by resignation"]

1. e4 {[%clk 0:03:00.9]} 1... e5 {[%clk 0:02:59]} 2. Nf3 {[%clk 0:03:01.3]} 2...
Nf6 {[%clk 0:02:59.3]} 3. Nxe5 {[%clk 0:03:01.3]} 3... d6 {[%clk 0:02:59.7]} 4.
Nf3 {[%clk 0:03:01.8]} 4... Nxe4 {[%clk 0:03:00.1]} 5. d4 {[%clk 0:03:02.7]}
5... d5 {[%clk 0:03:00.3]} 6. Bd3 {[%clk 0:03:03.1]} 6... Bd6 {[%clk 0:03:01]}
7. Nbd2 {[%clk 0:03:03.2]} 7... Nf6 {[%clk 0:02:59.3]} 8. O-O {[%clk 0:03:03]}
8... O-O {[%clk 0:02:59.1]} 9. Re1 {[%clk 0:03:03.5]} 9... h6 {[%clk 0:02:58.7]}
10. Nf1 {[%clk 0:03:03.6]} 10... Re8 {[%clk 0:02:57.9]} 11. c3 {[%clk
0:03:03.6]} 11... Bg4 {[%clk 0:02:55.8]} 12. Ng3 {[%clk 0:03:01.5]} 12... Rxe1+
{[%clk 0:02:50.7]} 13. Qxe1 {[%clk 0:03:02.4]} 13... Bxf3 {[%clk 0:02:43.9]} 14.
gxf3 {[%clk 0:03:03.3]} 14... Nc6 {[%clk 0:02:42.5]} 15. Be3 {[%clk 0:02:51.6]}
15... Ne7 {[%clk 0:02:34.6]} 16. Qd2 {[%clk 0:02:48.8]} 16... Qf8 {[%clk
0:02:01.8]} 17. Kh1 {[%clk 0:02:47.8]} 17... Kh8 {[%clk 0:01:40]} 18. Rg1 {[%clk
0:02:47.1]} 18... c6 {[%clk 0:01:33.4]} 19. Qe1 {[%clk 0:02:40.1]} 19... Qc8
{[%clk 0:01:23]} 20. Qf1 {[%clk 0:02:37.9]} 20... Qe6 {[%clk 0:01:21.3]} 21. Qg2
{[%clk 0:02:30.4]} 21... Rg8 {[%clk 0:01:20.5]} 22. Bd2 {[%clk 0:02:25.3]} 22...
Ng6 {[%clk 0:00:58.6]} 23. Nf5 {[%clk 0:01:56.5]} 23... Bf4 {[%clk 0:00:57.9]}
24. Be3 {[%clk 0:01:48.4]} 24... Nh7 {[%clk 0:00:31.8]} 25. Qg4 {[%clk
0:01:39.4]} 25... Bxe3 {[%clk 0:00:24.9]} 26. fxe3 {[%clk 0:01:38.4]} 26... Qf6
{[%clk 0:00:24.6]} 27. e4 {[%clk 0:01:29.2]} 27... dxe4 {[%clk 0:00:19.2]} 28.
fxe4 {[%clk 0:01:29.2]} 28... Qg5 {[%clk 0:00:17.2]} 29. Nd6 {[%clk 0:01:27]}
29... Rf8 {[%clk 0:00:09.8]} 30. e5 {[%clk 0:01:21.1]} 30... Qxg4 {[%clk
0:00:09.2]} 31. Rxg4 {[%clk 0:01:20.5]} 31... Ne7 {[%clk 0:00:05.3]} 32. Nxb7
{[%clk 0:01:19.6]} 32... Ng5 {[%clk 0:00:04.9]} 33. Nd6 {[%clk 0:01:18.3]} 33...
Ne6 {[%clk 0:00:02.7]} 34. Bc4 {[%clk 0:01:16.5]} 34... Kg8 {[%clk 0:00:02.7]}
35. Rg2 {[%clk 0:01:12.8]} 35... Nd5 {[%clk 0:00:02.9]} 36. Rf2 {[%clk
0:01:12.2]} 36... g6 {[%clk 0:00:02.5]} 37. Ne4 {[%clk 0:01:09.5]} 37... Kg7
{[%clk 0:00:02.7]} 38. Nf6 {[%clk 0:01:09.6]} 38... Ndf4 {[%clk 0:00:02.1]} 39.
b4 {[%clk 0:01:01.8]} 39... Rd8 {[%clk 0:00:02.2]} 40. Ne4 {[%clk 0:00:59.5]}
40... h5 {[%clk 0:00:02.4]} 41. Nd6 {[%clk 0:00:59]} 41... g5 {[%clk 0:00:02.2]}
42. h4 {[%clk 0:00:57.3]} 42... g4 {[%clk 0:00:01.9]} 43. Bxe6 {[%clk 0:00:57]}
43... Nxe6 {[%clk 0:00:01.2]} 44. Rxf7+ {[%clk 0:00:57.6]} 44... Kg6 {[%clk
0:00:01.7]} 45. Rf6+ {[%clk 0:00:57.9]} 45... Kg7 {[%clk 0:00:02.2]} 46. Rxe6
{[%clk 0:00:58.4]} 46... Rf8 {[%clk 0:00:02.7]} 47. Rf6 {[%clk 0:00:58.8]} 47...
Rxf6 {[%clk 0:00:01.5]} 48. exf6+ {[%clk 0:00:59.7]} 48... Kxf6 {[%clk
0:00:02.3]} 49. c4 {[%clk 0:00:56.6]} 49... Ke6 {[%clk 0:00:02.8]} 50. Ne4
{[%clk 0:00:56.9]} 50... Kf5 {[%clk 0:00:03.2]} 51. Ng3+ {[%clk 0:00:57.4]}
51... Kf4 {[%clk 0:00:02.6]} 52. Nxh5+ {[%clk 0:00:54.6]} 52... Ke4 {[%clk
0:00:02.1]} 53. Ng3+ {[%clk 0:00:53.4]} 53... Kxd4 {[%clk 0:00:02.1]} 54. h5
{[%clk 0:00:54]} 54... Ke5 {[%clk 0:00:02.3]} 55. Kg2 {[%clk 0:00:53.9]} 55...
Kf6 {[%clk 0:00:02.5]} 56. Kf2 {[%clk 0:00:54.4]} 1-0

[Event "Late-Titled-Tuesday-Blitz-September-19-2023"]
[Site "Chess.com"]
[Date "2023.09.19"]
[Round "7"]
[White "CFalcons8"]
[Black "Hoshka"]
[Result "1-0"]
[WhiteElo "2255"]
[BlackElo "2053"]
[TimeControl "180+1"]
[EndTime "15:15:13 PDT"]
[Termination "CFalcons8 won on time"]

1. e4 {[%clk 0:03:00.9]} 1... e5 {[%clk 0:02:59.6]} 2. Nf3 {[%clk 0:02:59.4]}
2... Nc6 {[%clk 0:02:59.4]} 3. Bb5 {[%clk 0:02:56.1]} 3... a6 {[%clk 0:02:59.1]}
4. Ba4 {[%clk 0:02:54.6]} 4... Nf6 {[%clk 0:02:57.5]} 5. O-O {[%clk 0:02:53.8]}
5... Be7 {[%clk 0:02:56.9]} 6. Re1 {[%clk 0:02:39]} 6... b5 {[%clk 0:02:56.4]}
7. Bb3 {[%clk 0:02:25]} 7... d6 {[%clk 0:02:56.2]} 8. c3 {[%clk 0:02:22.1]} 8...
O-O {[%clk 0:02:55.8]} 9. h3 {[%clk 0:02:15.1]} 9... Bb7 {[%clk 0:02:55.1]} 10.
d4 {[%clk 0:02:12]} 10... Re8 {[%clk 0:02:53.9]} 11. Nbd2 {[%clk 0:02:08.4]}
11... Bf8 {[%clk 0:02:52.8]} 12. Bc2 {[%clk 0:02:04.5]} 12... g6 {[%clk
0:02:37]} 13. a3 {[%clk 0:01:58.7]} 13... Bg7 {[%clk 0:02:36.1]} 14. Nf1 {[%clk
0:01:50.9]} 14... Nd7 {[%clk 0:02:24.9]} 15. Ng3 {[%clk 0:01:43.2]} 15... Nb6
{[%clk 0:02:14]} 16. b3 {[%clk 0:01:39.4]} 16... d5 {[%clk 0:02:03.4]} 17. dxe5
{[%clk 0:01:34.4]} 17... Nxe5 {[%clk 0:02:00.7]} 18. Nd4 {[%clk 0:01:28.1]}
18... c5 {[%clk 0:01:49.7]} 19. Nf3 {[%clk 0:01:12.7]} 19... Nxf3+ {[%clk
0:01:40.2]} 20. Qxf3 {[%clk 0:01:13.6]} 20... b4 {[%clk 0:01:31.9]} 21. axb4
{[%clk 0:01:05.6]} 21... cxb4 {[%clk 0:01:30.1]} 22. Bb2 {[%clk 0:00:58]} 22...
dxe4 {[%clk 0:01:20.5]} 23. Bxe4 {[%clk 0:00:46.1]} 23... Nd5 {[%clk 0:00:52.9]}
24. Red1 {[%clk 0:00:12]} 24... Rxe4 {[%clk 0:00:49.3]} 25. Nxe4 {[%clk
0:00:08.9]} 25... f5 {[%clk 0:00:39.1]} 26. Nc5 {[%clk 0:00:08.7]} 26... Bc6
{[%clk 0:00:20.7]} 27. Ne6 {[%clk 0:00:08]} 27... Qf6 {[%clk 0:00:16]} 28. Nxg7
{[%clk 0:00:06.8]} 28... bxc3 {[%clk 0:00:15.9]} 29. Rxd5 {[%clk 0:00:04.7]}
29... cxb2 {[%clk 0:00:12.5]} 30. Rad1 {[%clk 0:00:04.6]} 30... Kxg7 {[%clk
0:00:06.8]} 31. Rd7+ {[%clk 0:00:04.2]} 31... Kh6 {[%clk 0:00:04.1]} 32. Qf4+
{[%clk 0:00:03.7]} 32... g5 {[%clk 0:00:03.4]} 33. R7d6 {[%clk 0:00:04.1]} 33...
gxf4 {[%clk 0:00:01.9]} 34. Rxf6+ {[%clk 0:00:04.1]} 1-0

[Event "Late-Titled-Tuesday-Blitz-September-19-2023"]
[Site "Chess.com"]
[Date "2023.09.19"]
[Round "7"]
[White "karinachess1"]
[Black "DvaHrasta"]
[Result "1-0"]
[WhiteElo "2611"]
[BlackElo "2506"]
[TimeControl "180+1"]
[EndTime "15:15:20 PDT"]
[Termination "karinachess1 won on time"]

1. d4 {[%clk 0:03:00.9]} 1... Nf6 {[%clk 0:02:59.2]} 2. c4 {[%clk 0:03:01]} 2...
e6 {[%clk 0:02:59.5]} 3. Nc3 {[%clk 0:03:00.9]} 3... Bb4 {[%clk 0:02:59.5]} 4.
Qc2 {[%clk 0:03:01.3]} 4... O-O {[%clk 0:02:56.3]} 5. a3 {[%clk 0:03:01.1]} 5...
Bxc3+ {[%clk 0:02:55.9]} 6. Qxc3 {[%clk 0:03:02]} 6... d5 {[%clk 0:02:53.8]} 7.
Nf3 {[%clk 0:03:01.3]} 7... c6 {[%clk 0:02:52.2]} 8. Bg5 {[%clk 0:02:55.7]} 8...
h6 {[%clk 0:02:52.2]} 9. Bf4 {[%clk 0:02:52.8]} 9... Nbd7 {[%clk 0:02:50.3]} 10.
e3 {[%clk 0:02:52.5]} 10... Ne4 {[%clk 0:02:48.1]} 11. Qc2 {[%clk 0:02:52.2]}
11... f6 {[%clk 0:02:42.9]} 12. Bd3 {[%clk 0:02:43.9]} 12... e5 {[%clk
0:02:42.8]} 13. Bg3 {[%clk 0:02:33.3]} 13... Nxg3 {[%clk 0:02:35.5]} 14. Bh7+
{[%clk 0:01:59.1]} 14... Kh8 {[%clk 0:02:35.2]} 15. hxg3 {[%clk 0:01:59.8]}
15... e4 {[%clk 0:02:35.2]} 16. Bxe4 {[%clk 0:01:56]} 16... dxe4 {[%clk
0:02:35]} 17. Qxe4 {[%clk 0:01:56.9]} 17... f5 {[%clk 0:02:31.7]} 18. Qf4 {[%clk
0:01:50.9]} 18... Qf6 {[%clk 0:02:20.9]} 19. O-O-O {[%clk 0:01:50.9]} 19... b5
{[%clk 0:02:17.4]} 20. c5 {[%clk 0:01:48]} 20... a5 {[%clk 0:02:14.2]} 21. Rh5
{[%clk 0:01:43.5]} 21... b4 {[%clk 0:02:05.5]} 22. Rdh1 {[%clk 0:01:38.4]} 22...
Kg8 {[%clk 0:02:00.2]} 23. a4 {[%clk 0:01:26.8]} 23... Ba6 {[%clk 0:01:59.8]}
24. g4 {[%clk 0:00:52.3]} 24... fxg4 {[%clk 0:01:49.2]} 25. Qxg4 {[%clk
0:00:53.2]} 25... Qf7 {[%clk 0:01:22.2]} 26. Rxh6 {[%clk 0:00:53.3]} 26... Qc4+
{[%clk 0:01:21]} 27. Kb1 {[%clk 0:00:52.7]} 27... Nf6 {[%clk 0:01:05.2]} 28.
Rh8+ {[%clk 0:00:37.1]} 28... Kf7 {[%clk 0:01:04.7]} 29. Ne5+ {[%clk 0:00:37.3]}
29... Ke7 {[%clk 0:00:56.4]} 30. Qxg7+ {[%clk 0:00:33.3]} 30... Rf7 {[%clk
0:00:56.4]} 31. Qxf7+ {[%clk 0:00:29.1]} 31... Qxf7 {[%clk 0:00:55.5]} 32. Nxf7
{[%clk 0:00:30]} 32... Bd3+ {[%clk 0:00:51.1]} 33. Kc1 {[%clk 0:00:29.9]} 33...
Rxh8 {[%clk 0:00:50.5]} 34. Nxh8 {[%clk 0:00:30.8]} 34... Ne4 {[%clk 0:00:45.3]}
35. f3 {[%clk 0:00:29]} 35... Ng3 {[%clk 0:00:41.3]} 36. Rh3 {[%clk 0:00:27.1]}
36... Ne2+ {[%clk 0:00:38.6]} 37. Kd2 {[%clk 0:00:26.4]} 37... Bc4 {[%clk
0:00:38.7]} 38. Ng6+ {[%clk 0:00:25.6]} 38... Kf6 {[%clk 0:00:33.6]} 39. Ne5
{[%clk 0:00:25.7]} 39... Ba6 {[%clk 0:00:32.7]} 40. Nxc6 {[%clk 0:00:23.6]}
40... Ng1 {[%clk 0:00:27.8]} 41. Rh1 {[%clk 0:00:23.6]} 41... Ne2 {[%clk
0:00:27.8]} 42. Nxa5 {[%clk 0:00:16.9]} 42... Ng3 {[%clk 0:00:26.7]} 43. Rh6+
{[%clk 0:00:17]} 1-0